bitfinex/quotes_BTCUSD_20250123
["timestamp","ask_amount","ask_price","bid_price","bid_amount"]
[1737645897946,0.29584405,104240.0,104230.0,0.0001492]
[1737645898145,0.191935,104210.0,104190.0,0.00029862]
[1737645898367,0.095969,104200.0,104190.0,0.00029862]
[1737645899597,0.192013,104160.0,104130.0,0.18051273]
[1737645899807,0.411957,104190.0,104130.0,0.08497725]
[1737645899808,0.192034,104150.0,104130.0,0.08497725]
[1737645899993,0.096024,104140.0,104130.0,0.08497725]
[1737645900566,0.19203,104150.0,104130.0,0.08497725]
[1737645900856,0.096024,104140.0,104130.0,0.08497725]
[1737645901057,0.246024,104140.0,104130.0,0.08497725]
[1737645901260,0.246024,104140.0,104130.0,0.00049752]
[1737645901472,0.096043,104120.0,104110.0,0.00029883]
[1737645901640,0.096043,104120.0,104110.0,0.00044804]
[1737645901641,0.246043,104120.0,104110.0,0.00044804]
[1737645901848,0.296043,104120.0,104110.0,0.00044804]
[1737645902083,0.246043,104120.0,104110.0,0.00044804]
[1737645902282,0.096043,104120.0,104110.0,0.00044804]
[1737645902844,0.335109,104130.0,104110.0,0.09650004]
[1737645903041,0.2,104140.0,104130.0,0.096033]
[1737645903273,0.2,104140.0,104130.0,0.269033]
[1737645903483,0.287969,104180.0,104150.0,0.192018]
[1737645903683,0.095978,104190.0,104170.0,0.28797]
[1737645903880,0.19196,104190.0,104140.0,0.192037]
[1737645904083,0.191963,104190.0,104170.0,0.095995]
[1737645904306,0.287944,104190.0,104170.0,0.095994]
[1737645904510,0.22626545,104210.0,104160.0,0.191995]
[1737645904716,0.1594484,104210.0,104180.0,1.5]
[1737645904915,0.095979,104190.0,104170.0,0.19212421]
[1737645905125,0.2094484,104210.0,104170.0,0.00014921]
[1737645905250,0.095998,104170.0,104150.0,0.288029]
[1737645905457,0.096006,104160.0,104130.0,0.192054]
[1737645905692,0.096011,104160.0,104140.0,0.09602]
[1737645905896,0.191994,104170.0,104140.0,0.09602]
[1737645906104,0.096015,104150.0,104130.0,1.980137]
[1737645906300,0.191978,104180.0,104140.0,0.192034]
[1737645906500,0.192006,104170.0,104140.0,0.192034]
[1737645906717,0.096016,104150.0,104130.0,1.788077]
[1737645907043,0.15,104150.0,104110.0,0.28843883]
[1737645907178,0.096031,104140.0,104120.0,0.288121]
[1737645907378,0.096043,104120.0,104110.0,0.00029883]
[1737645907581,0.39208,104130.0,104110.0,0.00029883]
[1737645907788,0.630197,104130.0,104100.0,0.212107]
[1737645908010,0.246035,104130.0,104110.0,0.288144]
[1737645908207,0.192025,104160.0,104120.0,0.192073]
[1737645908412,0.0751,104180.0,104120.0,0.023]
[1737645908628,0.0489,104200.0,104190.0,0.095978]
[1737645908822,0.45893,104220.0,104190.0,0.095978]
[1737645908823,0.458932,104220.0,104200.0,0.095967]
[1737645909048,0.191886,104230.0,104180.0,0.191968]
[1737645909267,0.0001426,104240.0,104230.0,0.095941]
[1737645909463,0.0001426,104240.0,104230.0,0.245941]
[1737645909738,0.0001422,104270.0,104250.0,0.191842]
[1737645909980,0.0001422,104270.0,104230.0,0.191883]
[1737645909981,0.191841,104260.0,104240.0,0.28779]
[1737645910183,0.095918,104260.0,104240.0,0.479654]
[1737645910353,0.00063982,104270.0,104240.0,0.19186]
[1737645910555,0.191829,104260.0,104190.0,0.191954]
[1737645910723,0.00063982,104270.0,104190.0,0.191957]
[1737645910922,0.09595,104220.0,104200.0,0.287888]
[1737645911132,0.09597,104200.0,104180.0,0.479908]
[1737645911330,0.2,104240.0,104200.0,0.287902]
[1737645911331,0.287856,104220.0,104200.0,0.287902]
[1737645911574,0.15,104240.0,104190.0,0.191941]
[1737645911787,0.267059,104250.0,104200.0,0.191927]
[1737645911966,0.383719,104250.0,104230.0,0.09594]
[1737645912198,0.095952,104220.0,104200.0,0.287889]
[1737645912515,0.095954,104220.0,104200.0,0.191927]
[1737645912647,0.095944,104230.0,104200.0,0.191924]
[1737645912848,0.095943,104230.0,104210.0,0.191906]
[1737645913049,0.095961,104210.0,104190.0,0.09597]
[1737645913300,0.287881,104210.0,104190.0,0.287924]
[1737645913529,0.095961,104210.0,104200.0,0.095969]
[1737645913740,0.383822,104220.0,104200.0,0.095966]
[1737645913934,0.095971,104200.0,104180.0,0.287945]
[1737645914135,0.095971,104200.0,104140.0,0.20286986]
[1737645914136,0.095988,104180.0,104160.0,0.19201]
[1737645914264,0.191968,104190.0,104150.0,0.096006]
[1737645914465,0.15,104200.0,104180.0,0.09598]
[1737645914726,0.1,104230.0,104140.0,0.22]
[1737645914929,0.1,104230.0,104220.0,0.09595]
[1737645915117,0.1,104230.0,104210.0,0.095954]
[1737645915118,0.195949,104230.0,104210.0,0.095954]
[1737645915339,0.38832731,104230.0,104180.0,0.341972]
[1737645915544,0.38832731,104230.0,104210.0,0.28786]
[1737645915701,0.10049731,104230.0,104190.0,1.691944]
[1737645915904,0.34193,104210.0,104180.0,0.191972]
[1737645916127,0.095956,104220.0,104150.0,0.19203]
[1737645916332,0.48428931,104230.0,104170.0,0.191993]
[1737645916505,0.19643931,104230.0,104170.0,0.15]
[1737645916859,0.10049731,104230.0,104220.0,0.11895]
[1737645917186,0.10049731,104230.0,104220.0,0.26895]
[1737645917386,0.00455731,104230.0,104220.0,0.26895]
[1737645917642,0.0001422,104270.0,104260.0,0.118914]
[1737645917838,0.00029137,104270.0,104260.0,0.118914]
[1737645918012,0.00029137,104270.0,104260.0,0.268914]
[1737645918213,2.7e-07,104280.0,104270.0,0.268904]
[1737645918622,2.7e-07,104280.0,104270.0,0.095904]
[1737645919947,0.19179227,104280.0,104260.0,0.28772]
[1737645920155,0.095918,104260.0,104220.0,0.191891]
[1737645920356,0.191829,104260.0,104240.0,0.00014917]
[1737645920557,0.245923,104250.0,104240.0,0.00014917]
[1737645920755,0.095969,104200.0,104180.0,0.095984]
[1737645921063,0.191883,104230.0,104180.0,0.095984]
[1737645921064,0.081,104240.0,104180.0,0.191975]
[1737645921427,0.19194,104200.0,104170.0,0.191982]
[1737645921627,0.2,104230.0,104160.0,0.288011]
[1737645921628,0.191971,104190.0,104160.0,0.288011]
[1737645921784,0.287963,104180.0,104160.0,0.096002]
[1737645921990,0.28795,104190.0,104170.0,0.095996]
[1737645922209,0.28795,104190.0,104160.0,0.19201]
[1737645922210,0.191978,104180.0,104160.0,0.095999]
[1737645922422,0.28810092,104190.0,104170.0,0.095995]
[1737645922620,0.48005992,104190.0,104170.0,0.287988]
[1737645922856,0.09612692,104190.0,104170.0,0.479964]
[1737645923157,0.00014892,104190.0,104180.0,0.095987]
[1737645923863,0.00014892,104190.0,104170.0,0.383959]
[1737645924168,0.05,104260.0,104180.0,0.268987]
[1737645924307,0.287728,104270.0,104250.0,0.287762]
[1737645924487,0.19184,104260.0,104240.0,0.09593]
[1737645924693,0.287757,104260.0,104240.0,0.287794]
[1737645924941,0.27255358,104280.0,104250.0,0.191846]
[1737645925143,0.191823,104270.0,104250.0,0.095922]
[1737645925349,0.095914,104260.0,104250.0,0.095922]
[1737645925643,0.08074958,104280.0,104260.0,0.191826]
[1737645925894,0.08074958,104280.0,104220.0,0.191899]
[1737645925895,0.00014958,104280.0,104220.0,0.191899]
[1737645926092,0.00014958,104280.0,104270.0,0.095904]
[1737645926699,0.00014958,104280.0,104270.0,1.595904]
[1737645927053,0.2936503,104310.0,104280.0,0.191791]
[1737645927261,0.5812713,104310.0,104290.0,0.287654]
[1737645927501,0.5812713,104310.0,104300.0,0.095877]
[1737645927502,0.1019033,104310.0,104300.0,0.095877]
[1737645928248,0.0804479,104310.0,104290.0,0.575285]
[1737645928449,0.095888,104290.0,104270.0,0.383604]
[1737645928626,0.287692,104280.0,104260.0,0.287724]
[1737645928897,0.191784,104290.0,104270.0,0.095903]
[1737645929104,0.191784,104290.0,104180.0,0.0805]
[1737645929105,0.1261,104290.0,104180.0,0.0805]
[1737645929280,0.05,104270.0,104210.0,0.287872]
[1737645929602,0.0761,104290.0,104160.0,0.08510693]
[1737645929603,0.19192,104210.0,104160.0,0.08510693]
[1737645929755,0.0778,104220.0,104160.0,0.08510693]
[1737645929959,0.095992,104180.0,104160.0,0.18160424]
[1737645930162,0.191986,104180.0,104160.0,0.08560424]
[1737645930363,0.095996,104170.0,104160.0,0.08560424]
[1737645930821,0.28798,104180.0,104160.0,0.18160924]
[1737645930997,0.0778,104220.0,104160.0,0.19249531]
[1737645931227,0.09599,104180.0,104160.0,0.28849331]
[1737645931433,0.095983,104190.0,104170.0,0.19198]
[1737645931632,0.19193,104210.0,104160.0,0.00049731]
[1737645931793,0.19193,104210.0,104160.0,0.28849831]
[1737645931794,0.287968,104180.0,104160.0,0.28849831]
[1737645931991,0.095996,104170.0,104160.0,0.00049731]
[1737645932359,0.383965,104180.0,104160.0,0.09650331]
[1737645932360,0.191976,104180.0,104160.0,0.09650331]
[1737645932719,0.095996,104170.0,104160.0,0.00049731]
[1737645933074,0.245996,104170.0,104160.0,0.00049731]
[1737645933681,0.191957,104190.0,104160.0,0.00049731]
[1737645933885,0.287886,104210.0,104190.0,0.095974]
[1737645934232,0.095992,104180.0,104160.0,0.28850031]
[1737645934466,0.095987,104180.0,104160.0,0.28849431]
[1737645934655,0.191983,104180.0,104160.0,1.50049731]
[1737645934857,0.191938,104200.0,104160.0,0.19250831]
[1737645935000,0.095996,104170.0,104160.0,0.00049731]
[1737645935187,0.245996,104170.0,104160.0,0.00049731]
[1737645935385,0.095996,104170.0,104160.0,0.00049731]
[1737645935830,0.479969,104180.0,104160.0,0.28851031]
[1737645936065,0.095996,104170.0,104160.0,0.00049731]
[1737645936221,0.295996,104170.0,104160.0,0.00049731]
[1737645936435,0.245996,104170.0,104160.0,0.00049731]
[1737645936641,0.528563,104180.0,104160.0,0.28851431]
[1737645936801,0.191964,104190.0,104160.0,0.00049731]
[1737645937002,0.095996,104170.0,104160.0,0.00049731]
[1737645937505,0.245996,104170.0,104160.0,0.00049731]
[1737645937907,0.318996,104170.0,104160.0,0.00049731]
[1737645938116,0.295996,104170.0,104160.0,0.00049731]
[1737645938323,0.15,104170.0,104160.0,0.00049731]
[1737645938524,0.095996,104170.0,104160.0,0.00049731]
[1737645939347,0.287924,104200.0,104160.0,0.00049731]
[1737645939548,0.038412,104210.0,104170.0,0.023]
[1737645939748,0.038412,104210.0,104200.0,0.095969]
[1737645939951,0.287869,104220.0,104190.0,0.383888]
[1737645939952,0.095946,104230.0,104210.0,0.287865]
[1737645940174,0.095946,104230.0,104170.0,0.023]
[1737645940175,0.28794,104190.0,104170.0,0.095991]
[1737645940366,0.288005,104170.0,104150.0,0.096012]
[1737645940590,0.342005,104170.0,104120.0,0.192084]
[1737645940766,0.341997,104170.0,104150.0,0.192018]
[1737645940968,0.096021,104150.0,104130.0,0.096028]
[1737645941252,0.096021,104150.0,104130.0,0.288092]
[1737645941253,0.288063,104150.0,104130.0,0.288092]
[1737645941434,0.192042,104150.0,104120.0,0.19258231]
[1737645941661,0.342018,104160.0,104140.0,0.288067]
[1737645941662,0.630057,104160.0,104140.0,0.288067]
[1737645941846,0.096019,104150.0,104130.0,0.48015]
[1737645941996,0.096019,104150.0,104140.0,0.096024]
[1737645942208,0.1244,104190.0,104120.0,0.19258231]
[1737645942405,0.1244,104190.0,104150.0,0.096015]
[1737645942406,0.287981,104180.0,104150.0,0.096015]
[1737645942607,0.096009,104160.0,104150.0,0.096015]
[1737645942806,0.192004,104170.0,104150.0,0.096015]
[1737645943032,0.479954,104180.0,104160.0,0.096006]
[1737645943219,0.095996,104170.0,104160.0,0.288002]
[1737645943456,0.095985,104190.0,104150.0,0.192012]
[1737645943747,0.287955,104190.0,104170.0,0.287972]
[1737645943955,0.095987,104180.0,104160.0,0.384009]
[1737645944168,0.096015,104150.0,104110.0,0.00029904]
[1737645944365,0.096009,104160.0,104140.0,0.192048]
[1737645944565,0.096015,104150.0,104130.0,0.192057]
[1737645944766,0.192025,104160.0,104130.0,0.096027]
[1737645945007,0.096031,104140.0,104120.0,1.788111]
[1737645945183,0.096031,104140.0,104110.0,0.19289535]
[1737645945184,0.192073,104130.0,104110.0,0.28893635]
[1737645945383,0.246043,104120.0,104110.0,0.00079635]
[1737645945595,0.296043,104120.0,104110.0,0.00079635]
[1737645946116,0.29512751,104110.0,104100.0,0.02]
[1737645946319,0.31812751,104110.0,104100.0,0.02049894]
[1737645946522,0.29607,104090.0,104080.0,0.00029778]
[1737645946734,0.24607,104090.0,104080.0,7.8e-07]
[1737645946935,0.096089,104070.0,104060.0,0.00160278]
[1737645947049,0.096144,104010.0,104000.0,0.00029799]
[1737645947257,0.246144,104010.0,104000.0,0.00029799]
[1737645947450,0.27483287,104010.0,104000.0,0.00029799]
[1737645947706,0.30324066,104010.0,104000.0,0.00029799]
[1737645948296,0.384479,104040.0,104000.0,0.00029799]
[1737645948506,0.096124,104040.0,104020.0,0.096131]
[1737645948677,0.0492,104080.0,104050.0,0.192206]
[1737645948899,0.0825,104090.0,104060.0,0.19218]
[1737645948900,0.274643,104090.0,104060.0,0.19218]
[1737645949094,0.274643,104090.0,104050.0,0.096102]
[1737645949095,0.096091,104070.0,104050.0,0.096102]
[1737645949319,0.096084,104080.0,104050.0,0.192201]
[1737645949469,0.096091,104070.0,104050.0,0.192201]
[1737645949673,0.096091,104070.0,104050.0,0.384404]
[1737645949888,0.288255,104080.0,104060.0,0.288293]
[1737645950087,0.0004959,104080.0,104070.0,0.096089]
[1737645950330,0.0004959,104080.0,104070.0,0.269089]
[1737645950455,0.0004959,104080.0,104070.0,0.096089]
[1737645950899,0.0965799,104080.0,104060.0,0.192181]
[1737645951114,0.288277,104070.0,104050.0,0.096104]
[1737645951316,0.288277,104070.0,104050.0,0.288319]
[1737645951522,0.096099,104060.0,104040.0,0.480549]
[1737645951747,0.2887539,104080.0,104060.0,0.096093]
[1737645951944,0.2887539,104080.0,104060.0,0.288288]
[1737645952149,0.0004959,104080.0,104070.0,0.096089]
[1737645952358,0.192189,104070.0,104040.0,0.192233]
[1737645952556,0.0004959,104080.0,104070.0,0.096089]
[1737645952831,0.096098,104060.0,104040.0,0.192222]
[1737645952980,0.096098,104060.0,104040.0,0.192223]
[1737645953185,0.1926669,104080.0,104060.0,0.192196]
[1737645953367,0.0001424,104050.0,104040.0,0.096114]
[1737645953775,0.0001424,104050.0,104040.0,0.438347]
[1737645954082,0.0004959,104080.0,104070.0,0.269089]
[1737645954273,0.2416657,104160.0,104130.0,0.192066]
[1737645954479,0.2879637,104160.0,104140.0,0.288052]
[1737645954685,0.2879637,104160.0,104150.0,1.5]
[1737645955119,0.096056,104110.0,104090.0,0.19213]
[1737645955368,0.192049,104140.0,104070.0,0.288246]
[1737645955369,0.096071,104090.0,104070.0,0.288246]
[1737645955573,0.096071,104090.0,104040.0,0.192233]
[1737645955574,0.15,104120.0,104080.0,1.692145]
[1737645955912,0.09605,104120.0,104110.0,0.096052]
[1737645956061,0.288121,104130.0,104120.0,0.096043]
[1737645956264,0.288121,104130.0,104110.0,0.096051]
[1737645956265,0.38416,104130.0,104110.0,0.096051]
[1737645956483,0.38416,104130.0,104030.0,0.13457073]
[1737645956484,0.192106,104110.0,104080.0,0.192157]
[1737645956686,0.096075,104090.0,104070.0,0.384342]
[1737645956885,0.288185,104100.0,104080.0,0.192159]
[1737645957090,0.192123,104100.0,104070.0,0.192167]
[1737645957334,0.096074,104090.0,104080.0,0.096079]
[1737645957544,0.192142,104090.0,104070.0,0.19231631]
[1737645957742,0.15,104120.0,104080.0,1.5]
[1737645957975,0.192106,104110.0,104090.0,0.288205]
[1737645958186,0.04200645,104130.0,104110.0,0.096052]
[1737645958187,0.288117,104130.0,104110.0,0.096052]
[1737645958386,0.35864761,104170.0,104090.0,0.192141]
[1737645958387,0.1004983,104170.0,104090.0,0.192141]
[1737645958498,0.192012,104160.0,104120.0,1.596042]
[1737645958705,0.192012,104160.0,104120.0,0.192077]
[1737645958914,0.288024,104160.0,104130.0,0.192054]
[1737645959126,0.0001427,104180.0,104160.0,0.191999]
[1737645959332,2.70328092,104170.0,104160.0,0.19214831]
[1737645959534,2.70328092,104170.0,104140.0,0.438071]
[1737645959535,0.93273672,104150.0,104140.0,0.438071]
[1737645959736,0.92867833,104150.0,104140.0,0.438071]
[1737645959950,2.53070096,104160.0,104150.0,0.119015]
[1737645960161,2.52525936,104160.0,104150.0,0.269015]
[1737645960378,2.52525936,104160.0,104150.0,0.319015]
[1737645960578,2.52525936,104160.0,104150.0,1.769015]
[1737645960788,2.52525936,104160.0,104150.0,1.746015]
[1737645961262,2.52525936,104160.0,104150.0,1.796015]
[1737645961815,1.86621292,104160.0,104150.0,2.75084817]
[1737645961998,3.04482697,104170.0,104160.0,0.316006]
[1737645961999,2.98722997,104170.0,104160.0,0.316006]
[1737645962202,2.98718194,104170.0,104160.0,0.096006]
[1737645962400,3.08318694,104170.0,104150.0,0.096008]
[1737645962606,0.096024,104140.0,104130.0,0.00014892]
[1737645963251,0.239243,104150.0,104130.0,0.00014892]
[1737645963447,0.0472,104150.0,104140.0,0.096024]
[1737645963890,0.0472,104150.0,104130.0,0.19220092]
[1737645963891,0.0472,104150.0,104130.0,0.00014892]
[1737645964120,0.096024,104140.0,104130.0,0.00014892]
[1737645964318,0.0472,104150.0,104130.0,0.28823992]
[1737645964469,0.0472,104150.0,104140.0,0.096024]
[1737645965161,0.0472,104150.0,104130.0,0.38525392]
[1737645965373,0.0472,104150.0,104130.0,0.00014892]
[1737645965374,0.096024,104140.0,104130.0,0.00014892]
[1737645965787,0.0961664,104140.0,104130.0,0.00014892]
[1737645965993,4e-07,104140.0,104130.0,0.24618192]
[1737645966199,2.98718194,104170.0,104160.0,0.269006]
[1737645966200,2.96798294,104170.0,104160.0,0.269006]
[1737645966408,1.38838678,104170.0,104160.0,0.29554764]
[1737645966611,0.46067673,104170.0,104160.0,1.30738081]
[1737645966811,2.70170017,104180.0,104170.0,0.315996]
[1737645967015,2.64835995,104180.0,104170.0,0.34553764]
[1737645967218,2.52826634,104180.0,104170.0,0.34553764]
[1737645967427,2.44186633,104180.0,104170.0,0.27553764]
[1737645967840,2.44186633,104180.0,104170.0,0.36494225]
[1737645968043,2.4169114,104180.0,104170.0,0.33794225]
[1737645968250,2.06890476,104180.0,104170.0,0.35968115]
[1737645968452,0.72239794,104180.0,104170.0,0.43537229]
[1737645968654,0.33500576,104180.0,104170.0,0.41363339]
[1737645968805,0.29943576,104180.0,104170.0,0.38809117]
[1737645969031,0.24184176,104180.0,104170.0,0.30954953]
[1737645969229,0.20344576,104180.0,104170.0,0.34014492]
[1737645969441,0.20344576,104180.0,104170.0,0.29014492]
[1737645969647,0.18417165,104180.0,104170.0,0.35068783]
[1737645970028,0.18417165,104180.0,104170.0,0.10768783]
[1737645970235,0.14577565,104180.0,104170.0,0.09714492]
[1737645970445,0.08818165,104180.0,104170.0,0.29714492]
[1737645970646,0.08818165,104180.0,104170.0,0.29614492]
[1737645970851,0.08818165,104180.0,104170.0,0.09614492]
[1737645971046,0.08818165,104180.0,104170.0,0.00114892]
[1737645971419,0.08818165,104180.0,104170.0,0.09714492]
[1737645971624,0.08818165,104180.0,104170.0,0.00014892]
[1737645971834,0.08818165,104180.0,104170.0,0.09614492]
[1737645972043,2.74847515,104190.0,104170.0,0.00114892]
[1737645972044,2.7406688,104190.0,104170.0,0.00114892]
[1737645972236,2.54304323,104190.0,104180.0,0.338987]
[1737645972441,2.54304323,104190.0,104180.0,0.268987]
[1737645972442,2.36392524,104190.0,104180.0,0.268987]
[1737645972650,2.36392524,104190.0,104180.0,0.284365]
[1737645973000,2.36392524,104190.0,104180.0,0.307365]
[1737645973388,2.26794524,104190.0,104180.0,0.377365]
[1737645973567,2.26794524,104190.0,104180.0,0.327365]
[1737645973761,2.26794524,104190.0,104180.0,0.377365]
[1737645974057,2.22955324,104190.0,104180.0,0.377365]
[1737645974245,2.17196524,104190.0,104180.0,0.377365]
[1737645974446,2.17196524,104190.0,104180.0,0.327365]
[1737645974648,2.17196524,104190.0,104180.0,0.377365]
[1737645975112,2.11437724,104190.0,104180.0,0.377365]
[1737645975297,2.07598524,104190.0,104180.0,0.308365]
[1737645975544,2.07598524,104190.0,104180.0,0.135365]
[1737645975755,2.07598524,104190.0,104180.0,0.096987]
[1737645976383,2.07598524,104190.0,104180.0,0.246987]
[1737645976580,2.07598524,104190.0,104180.0,0.095987]
[1737645976783,2.31385324,104190.0,104180.0,0.038383]
[1737645977009,2.12188524,104190.0,104180.0,0.038383]
[1737645977296,2.12188524,104190.0,104180.0,0.095987]
[1737645977497,2.07598524,104190.0,104180.0,0.245987]
[1737645977740,2.07598524,104190.0,104180.0,0.095987]
[1737645977957,2.07598524,104190.0,104170.0,0.00014892]
[1737645977958,0.372287,104180.0,104170.0,0.00014892]
[1737645978165,0.096024,104140.0,104130.0,0.00029862]
[1737645978366,0.144324,104140.0,104130.0,0.00029862]
[1737645978572,0.1248,104140.0,104130.0,0.00029862]
[1737645978772,0.1248,104140.0,104130.0,0.09633162]
[1737645980111,0.1208,104180.0,104160.0,0.19201]
[1737645980250,0.000143,104170.0,104160.0,0.096005]
[1737645980457,0.000143,104170.0,104160.0,0.246005]
[1737645981036,0.000143,104170.0,104160.0,0.096006]
[1737645981617,0.000143,104170.0,104160.0,0.246006]
[1737645981819,2.05693144,104190.0,104180.0,0.138987]
[1737645981960,2.05742897,104190.0,104180.0,0.095987]
[1737645982159,2.05742897,104190.0,104180.0,0.115987]
[1737645982359,2.05742897,104190.0,104180.0,0.265987]
[1737645982610,2.05742897,104190.0,104180.0,0.315987]
[1737645982814,1.96144897,104190.0,104180.0,0.338987]
[1737645982990,1.94225297,104190.0,104180.0,0.338987]
[1737645983197,1.90386097,104190.0,104180.0,0.338987]
[1737645983395,1.86546897,104190.0,104180.0,0.338987]
[1737645984080,1.86546897,104190.0,104180.0,0.268987]
[1737645984286,1.80788097,104190.0,104180.0,0.338987]
[1737645984488,1.69070682,104190.0,104180.0,0.29915387]
[1737645984672,1.69070682,104190.0,104180.0,0.34915387]
[1737645985023,1.69070682,104190.0,104180.0,0.27615387]
[1737645985226,1.69070682,104190.0,104180.0,0.095987]
[1737645985669,1.69070682,104190.0,104170.0,0.38396]
[1737645985916,0.246002,104170.0,104140.0,0.096017]
[1737645986141,0.0499,104150.0,104130.0,0.28837962]
[1737645986352,0.096024,104140.0,104130.0,0.00029862]
[1737645986572,0.326524,104140.0,104130.0,0.00029862]
[1737645986783,0.2735,104140.0,104090.0,0.422673]
[1737645987013,0.192078,104130.0,104100.0,0.09606]
[1737645987219,0.0805,104140.0,104090.0,0.038414]
[1737645987420,0.0805,104140.0,104130.0,0.096033]
[1737645987639,0.464623,104140.0,104100.0,0.19641927]
[1737645987780,0.192087,104120.0,104090.0,0.12288458]
[1737645987983,0.143961,104100.0,104090.0,0.08447158]
[1737645988187,0.226261,104100.0,104090.0,0.08447158]
[1737645988390,0.096083,104080.0,104060.0,0.00029925]
[1737645988593,0.096084,104080.0,104060.0,0.00079515]
[1737645988795,0.322324,104100.0,104060.0,0.00079515]
[1737645989000,0.1302,104100.0,104070.0,0.384344]
[1737645989219,0.1302,104100.0,104060.0,0.20186309]
[1737645989220,0.096072,104090.0,104060.0,0.20186309]
[1737645989427,0.1302,104100.0,104080.0,0.192159]
[1737645989630,0.1302,104100.0,104080.0,0.096074]
[1737645989830,0.096071,104090.0,104060.0,0.29795309]
[1737645990037,0.418397,104100.0,104070.0,0.096088]
[1737645990230,0.322327,104100.0,104070.0,0.096088]
[1737645990500,0.322327,104100.0,104070.0,0.096087]
[1737645990706,0.192164,104080.0,104060.0,0.00967809]
[1737645990840,0.293389,104070.0,104060.0,0.00967809]
[1737645991050,0.096126,104030.0,104020.0,0.00029925]
[1737645991249,0.28837,104040.0,104020.0,0.00029925]
[1737645991472,0.15,104050.0,104020.0,0.00029925]
[1737645991638,0.27301,104060.0,104030.0,0.192237]
[1737645991639,0.0808,104060.0,104030.0,0.192237]
[1737645991834,0.369097,104060.0,104030.0,0.288377]
[1737645992058,0.326901,104060.0,104030.0,0.38449]
[1737645992256,0.0808,104060.0,104040.0,0.192218]
[1737645992457,0.08129691,104060.0,104040.0,0.288331]
[1737645992751,0.08129691,104060.0,104040.0,0.384466]
[1737645992980,0.08129691,104060.0,104050.0,0.096107]
[1737645993968,0.08129691,104060.0,104040.0,0.192219]
[1737645994218,0.096109,104050.0,104030.0,0.288374]
[1737645994422,0.36961391,104060.0,104030.0,0.288374]
[1737645994527,0.36959691,104060.0,104040.0,0.096116]
[1737645994735,0.17739891,104060.0,104040.0,0.096116]
[1737645994974,0.096126,104030.0,104020.0,0.00029925]
[1737645995133,0.315826,104030.0,104020.0,0.00029925]
[1737645995338,0.338826,104030.0,104020.0,0.00029925]
[1737645995561,0.145826,104030.0,104020.0,0.00029925]
[1737645995763,0.0697,104030.0,104000.0,0.00029799]
[1737645995963,0.096181,103970.0,103960.0,0.01583075]
[1737645996182,0.242059,103980.0,103960.0,0.01583075]
[1737645996442,0.096181,103970.0,103960.0,0.01583075]
[1737645996662,0.246181,103970.0,103960.0,0.01583075]
[1737645997347,0.15,103970.0,103960.0,0.01583075]
[1737645997591,0.0497,103980.0,103960.0,0.11216375]
[1737645997745,0.096181,103970.0,103960.0,0.01597375]
[1737645998601,0.266181,103970.0,103960.0,0.01597375]
[1737645998806,0.246181,103970.0,103960.0,0.01597375]
[1737645999006,0.338233,103980.0,103960.0,0.01597375]
[1737645999160,0.0497,103980.0,103960.0,0.30453775]
[1737645999365,0.0497,103980.0,103960.0,0.59310275]
[1737645999563,0.0497,103980.0,103970.0,0.096181]
[1737645999814,0.129,104020.0,104010.0,0.096144]
[1737646000168,0.129,104020.0,103990.0,0.384639]
[1737646000496,0.129,104020.0,104010.0,0.096144]
[1737646000695,0.046,104020.0,104000.0,0.288452]
[1737646000821,0.046,104020.0,103990.0,0.192313]
[1737646001152,0.06649661,104020.0,103990.0,0.192313]
[1737646001326,0.19649661,104020.0,103970.0,0.342349]
[1737646001548,0.096148,104010.0,103990.0,0.096157]
[1737646001751,0.342294,104010.0,103960.0,0.02628135]
[1737646002076,0.3623,104010.0,103980.0,0.288497]
[1737646002306,0.54719461,104020.0,104000.0,0.096152]
[1737646002541,0.54719261,104020.0,103990.0,0.480795]
[1737646003041,0.096144,104010.0,103990.0,0.288471]
[1737646003300,0.45105361,104020.0,104000.0,0.096152]
[1737646003301,0.33491161,104020.0,104000.0,0.096152]
[1737646003585,0.00049661,104020.0,104010.0,0.246144]
[1737646003824,0.51989461,104090.0,104060.0,0.288282]
[1737646003825,0.175877,104090.0,104060.0,0.288282]
[1737646004078,0.175877,104090.0,104050.0,0.192215]
[1737646004079,0.0798,104090.0,104080.0,0.096079]
[1737646005073,0.0798,104090.0,104060.0,0.18335248]
[1737646005317,0.418025,104090.0,104080.0,0.000143]
[1737646005560,0.096106,104060.0,104030.0,0.288372]
[1737646005825,0.096108,104050.0,104030.0,0.288372]
[1737646006068,0.096126,104030.0,104010.0,0.28870804]
[1737646006335,0.557163,104030.0,104010.0,0.00029904]
[1737646006569,0.1226,104030.0,104010.0,0.19257604]
[1737646006809,0.0461,104030.0,104020.0,0.096135]
[1737646007042,0.0461,104030.0,104010.0,0.38484904]
[1737646007303,0.0461,104030.0,104020.0,0.096135]
[1737646007304,0.0462489,104030.0,104020.0,0.096135]
[1737646007768,0.0001489,104030.0,104020.0,0.096135]
[1737646008029,0.02,104050.0,104020.0,0.096135]
[1737646008270,0.0464,104060.0,104010.0,0.00029904]
[1737646008510,0.33471,104060.0,104040.0,0.096113]
[1737646008768,0.096108,104050.0,104030.0,0.480601]
[1737646009037,0.288355,104040.0,104020.0,0.28838]
[1737646009274,0.290663,104030.0,104010.0,0.00044794]
[1737646009537,0.096135,104020.0,104010.0,0.00044794]
[1737646010250,0.655197,104030.0,104010.0,0.09659194]
[1737646010251,0.559057,104030.0,104010.0,0.09659194]
[1737646010488,0.096135,104020.0,104010.0,0.00044794]
[1737646010988,0.366793,104030.0,104010.0,0.09659094]
[1737646011222,0.266135,104020.0,104010.0,0.00044794]
[1737646011708,0.246135,104020.0,104010.0,0.00044794]
[1737646011957,0.266135,104020.0,104010.0,0.00044794]
[1737646012223,0.368535,104020.0,104010.0,0.00044794]
[1737646012651,0.096181,103970.0,103960.0,0.02583983]
[1737646012859,0.384716,103980.0,103960.0,0.01632736]
[1737646013082,0.21109034,104000.0,103970.0,0.096181]
[1737646013292,0.096163,103990.0,103970.0,0.288522]